bitfinex/quotes_SOLUSD_20240603
["timestamp","ask_amount","ask_price","bid_price","bid_amount"]
[1717407598465,9.287,165.4,165.34,2.2377]
[1717407598668,7.05,165.39,165.34,2.2377]
[1717407598963,13.1113,165.39,165.34,2.2377]
[1717407600398,13.1113,165.39,165.35,2.2376]
[1717407600564,13.1113,165.39,165.31,36.26]
[1717407600565,15.3542,165.38,165.33,2.2378]
[1717407600897,9.2874,165.37,165.32,2.238]
[1717407602184,8.3041,165.38,165.33,2.2379]
[1717407602493,15.3541,165.38,165.33,2.2379]
[1717407602674,2.2371,165.39,165.34,2.2378]
[1717407603076,2.2372,165.38,165.33,2.2379]
[1717407603464,2.2372,165.38,165.33,9.2879]
[1717407603664,2.2372,165.38,165.33,2.2379]
[1717407604770,2.2374,165.37,165.32,2.238]
[1717407605377,2.2375,165.36,165.31,2.4081]
[1717407605709,2.2375,165.36,165.31,9.4581]
[1717407605999,2.2375,165.36,165.31,2.2382]
[1717407606369,9.2875,165.36,165.31,2.2382]
[1717407606895,7.05,165.36,165.29,38.4983]
[1717407607197,7.05,165.36,165.3,7.22]
[1717407607405,7.05,165.36,165.3,0.17]
[1717407607595,7.05,165.36,165.3,7.22]
[1717407607897,7.05,165.35,165.3,2.2382]
[1717407608088,2.2375,165.36,165.3,2.2382]
[1717407608283,7.05,165.35,165.3,2.2382]
[1717407609392,15.8244,165.36,165.31,2.2381]
[1717407609601,15.8244,165.36,165.3,9.2883]
[1717407610101,15.8244,165.36,165.31,2.2382]
[1717407610794,7.05,165.36,165.27,36.26]
[1717407611010,2.2378,165.34,165.29,7.05]
[1717407611293,2.2378,165.34,165.29,9.2884]
[1717407611495,15.731,165.35,165.29,9.2884]
[1717407612592,2.2378,165.34,165.29,9.2884]
[1717407612990,2.2378,165.34,165.29,2.2384]
[1717407613194,2.2378,165.34,165.28,2.5785]
[1717407613391,2.2378,165.34,165.28,9.6285]
[1717407613585,2.2378,165.34,165.28,2.5785]
[1717407613898,2.2378,165.34,165.28,9.6285]
[1717407614100,9.2879,165.33,165.28,2.2385]
[1717407616279,6.4433,165.35,165.28,7.05]
[1717407616470,7.05,165.34,165.28,7.05]
[1717407617293,2.2379,165.33,165.28,9.2885]
[1717407617496,2.2379,165.33,165.28,2.2385]
[1717407617692,2.2379,165.33,165.28,9.2885]
[1717407617909,9.2879,165.33,165.28,2.2385]
[1717407618080,15.5561,165.33,165.28,2.2385]
[1717407618808,2.2381,165.32,165.27,9.2887]
[1717407619777,2.2381,165.32,165.28,2.2386]
[1717407620090,7.05,165.34,165.27,43.31]
[1717407620410,2.2375,165.36,165.31,9.2881]
[1717407620584,2.2375,165.36,165.32,7.05]
[1717407621390,2.2376,165.35,165.3,2.2383]
[1717407621592,2.2376,165.35,165.31,7.05]
[1717407622510,2.2376,165.35,165.3,2.2383]
[1717407622710,2.2376,165.35,165.3,9.2883]
[1717407624307,2.2376,165.35,165.31,2.2382]
[1717407624512,2.2376,165.35,165.3,7.05]
[1717407625911,2.2376,165.35,165.3,9.2883]
[1717407628534,2.2376,165.35,165.3,2.2383]
[1717407628716,2.2376,165.35,165.3,9.2883]
[1717407629925,2.2376,165.35,165.3,2.2383]
[1717407630232,2.2376,165.35,165.3,9.2883]
[1717407633939,2.2378,165.34,165.3,7.05]
[1717407636933,2.2378,165.34,165.3,9.2883]
[1717407638545,2.2378,165.34,165.3,2.2383]
[1717407639240,15.7315,165.34,165.29,2.2384]
[1717407639419,2.2379,165.33,165.28,2.4085]
[1717407639625,2.2381,165.32,165.28,9.2885]
[1717407640321,2.2381,165.32,165.28,2.2385]
[1717407641143,9.2879,165.33,165.28,2.2385]
[1717407642442,15.8309,165.33,165.28,2.2385]
[1717407648975,2.2381,165.32,165.27,9.2887]
[1717407660208,15.8171,165.32,165.27,2.2387]
[1717407660888,8.7671,165.32,165.27,2.2387]
[1717407661086,6.529,165.32,165.28,2.2385]
[1717407661271,2.2379,165.34,165.29,2.2384]
[1717407661597,6.3684,165.37,165.3,7.05]
[1717407661774,2.2377,165.35,165.3,9.2883]
[1717407661977,6.3684,165.37,165.3,9.2883]
[1717407662185,2.2378,165.34,165.3,7.05]
[1717407662570,6.3684,165.37,165.31,7.05]
[1717407662873,2.2375,165.36,165.31,9.2882]
[1717407663692,2.2375,165.36,165.31,7.05]
[1717407664076,20.8882,165.41,165.28,36.26]
[1717407664284,2.2371,165.39,165.34,2.2378]
[1717407664475,2.2371,165.39,165.34,9.2878]
[1717407665893,2.237,165.4,165.35,7.05]
[1717407666096,2.237,165.4,165.36,7.05]
[1717407666780,2.2367,165.42,165.37,7.05]
[1717407667081,2.2367,165.42,165.37,9.2872]
[1717407667275,2.2367,165.42,165.38,7.05]
[1717407668377,2.2367,165.42,165.37,7.05]
[1717407669391,2.2367,165.42,165.37,9.2873]
[1717407669698,2.2366,165.43,165.38,7.05]
[1717407670397,2.2366,165.43,165.38,9.2872]
[1717407670600,25.60450622,165.55,165.38,9.2872]
[1717407670601,17.8343,165.49,165.4,7.05]
[1717407670792,7.05,165.48,165.41,0.17]
[1717407671103,2.2362,165.46,165.42,7.05]
[1717407671993,2.2362,165.46,165.41,0.17]
[1717407672182,2.2363,165.45,165.39,2.407]
[1717407672384,2.2363,165.45,165.4,7.05]
[1717407672910,2.2363,165.45,165.4,9.2869]
[1717407673308,2.2363,165.45,165.41,7.05]
[1717407673678,2.2362,165.46,165.41,7.05]
[1717407674006,2.2362,165.46,165.41,9.2868]
[1717407674517,2.236,165.47,165.42,2.2366]
[1717407674817,2.236,165.47,165.42,9.2866]
[1717407676801,2.236,165.47,165.42,7.05]
[1717407677011,9.286,165.47,165.41,45.8868]
[1717407677307,9.286,165.47,165.42,0.17]
[1717407677714,2.2361,165.46,165.41,45.7168]
[1717407679811,11.39318788,165.49,165.37,36.26]
[1717407679986,2.2367,165.42,165.37,45.5473]
[1717407680390,9.2866,165.43,165.38,2.2372]
[1717407681485,2.2367,165.42,165.37,2.2374]
[1717407681692,9.2867,165.42,165.37,2.2374]
[1717407681890,11.1804,165.47,165.37,2.2374]
[1717407681891,9.2866,165.43,165.38,2.2372]
[1717407682816,9.2868,165.42,165.36,9.2874]
[1717407683018,9.2868,165.42,165.36,2.2374]
[1717407683189,9.2868,165.42,165.36,9.2874]
[1717407683514,9.2868,165.41,165.36,2.2374]
[1717407683900,9.2868,165.41,165.35,7.39]
[1717407683901,2.237,165.4,165.35,2.4076]
[1717407684219,9.287,165.4,165.35,2.2376]
[1717407684999,10.7171,165.43,165.34,2.2377]
[1717407685311,7.05,165.38,165.32,2.238]
[1717407685518,7.05,165.38,165.32,9.288]
[1717407685692,13.2939,165.37,165.32,2.238]
[1717407686910,15.5314,165.37,165.32,2.238]
[1717407693197,9.2875,165.36,165.32,2.238]
[1717407693727,9.2875,165.36,165.31,2.2381]
[1717407695097,9.2876,165.35,165.3,2.2383]
[1717407695334,6.1111,165.34,165.3,2.2383]
[1717407695514,15.3989,165.34,165.29,2.2384]
[1717407696809,2.238,165.33,165.26,36.26]
[1717407697020,2.238,165.33,165.28,9.2886]
[1717407697202,9.288,165.33,165.28,2.2386]
[1717407697621,2.238,165.33,165.28,2.2386]
[1717407697819,8.3489,165.34,165.29,2.2384]
[1717407698309,8.3489,165.34,165.29,9.2884]
[1717407698514,8.3489,165.34,165.29,2.2384]
[1717407698749,2.2379,165.33,165.29,7.05]
[1717407698915,8.3489,165.34,165.29,9.2884]
[1717407699804,8.3489,165.34,165.29,2.2384]
[1717407700007,2.2379,165.33,165.28,9.2885]
[1717407704650,2.2379,165.33,165.29,2.2384]
[1717407705923,2.2379,165.33,165.28,9.2886]
[1717407708426,2.2381,165.32,165.28,9.2886]
[1717407710141,2.2379,165.33,165.28,9.2886]
[1717407713033,2.2379,165.33,165.27,2.2387]
[1717407713236,2.238,165.32,165.29,7.05]
[1717407713443,6.1111,165.34,165.29,7.05]
[1717407713444,2.2379,165.33,165.29,7.05]
[1717407714947,7.05,165.35,165.29,7.05]
[1717407715252,10.642,165.39,165.32,7.05]
[1717407715559,2.2375,165.36,165.32,7.05]
[1717407716557,2.2376,165.35,165.32,7.05]
[1717407717563,2.2378,165.34,165.32,7.05]
[1717407718147,2.2376,165.36,165.32,7.05]
[1717407718330,2.2376,165.35,165.31,7.05]
[1717407719455,2.2376,165.35,165.32,7.05]
[1717407719653,2.2376,165.35,165.29,38.4983]
[1717407720656,2.2376,165.35,165.3,2.5783]
[1717407722968,2.2375,165.36,165.31,2.2382]
[1717407724042,17.692,165.39,165.3,0.34]
[1717407724043,2.2376,165.35,165.3,2.5783]
[1717407725767,2.2376,165.35,165.31,1.20998493]
[1717407726065,2.2376,165.35,165.31,3.44818493]
[1717407727158,8.9476,165.41,165.34,7.05]
[1717407727363,2.2372,165.39,165.36,7.05]
[1717407727562,2.2372,165.39,165.37,8.26028352]
[1717407728786,2.2373,165.38,165.34,38.4977]
[1717407728963,2.2373,165.38,165.35,7.05]
[1717407732251,2.2374,165.37,165.33,9.2879]
[1717407732438,2.2374,165.37,165.33,7.05]
[1717407732878,2.2374,165.37,165.33,9.2879]
[1717407735960,2.2373,165.38,165.34,7.05]
[1717407737653,2.2374,165.37,165.34,7.05]
[1717407737885,2.2374,165.37,165.33,2.2379]
[1717407738063,2.2374,165.37,165.34,7.05]
[1717407739254,2.2374,165.37,165.33,9.2879]
[1717407739451,2.2374,165.37,165.33,2.2379]
[1717407739757,2.2374,165.37,165.33,9.2879]
[1717407740772,8.8255,165.37,165.32,2.238]
[1717407741090,8.8255,165.37,165.33,7.05]
[1717407741291,2.2374,165.37,165.33,9.2879]
[1717407741592,2.2373,165.38,165.33,9.2879]
[1717407747082,2.2373,165.38,165.34,7.05]
[1717407749502,2.2373,165.38,165.33,2.2379]
[1717407749704,2.2373,165.38,165.33,9.2879]
[1717407752800,2.2374,165.37,165.33,9.2879]
[1717407753001,2.2374,165.37,165.34,7.05]
[1717407754205,2.2374,165.37,165.33,2.2379]
[1717407754390,2.2374,165.37,165.34,7.05]
[1717407755075,2.2373,165.38,165.34,7.05]
[1717407759120,2.2373,165.38,165.33,9.2879]
[1717407764239,2.2373,165.38,165.33,45.5479]
[1717407764420,4.4732,165.43,165.37,7.05]
[1717407766136,2.237,165.4,165.37,7.05]
[1717407766438,2.2371,165.39,165.37,7.05]
[1717407773324,2.2371,165.39,165.34,0.34]
[1717407773325,2.2372,165.38,165.34,0.34]
[1717407773531,2.2372,165.38,165.35,7.05]
[1717407774725,2.2372,165.38,165.34,2.5777]
[1717407774928,2.2374,165.37,165.34,0.34]
[1717407775218,2.2374,165.37,165.35,7.05]
[1717407775651,2.2374,165.37,165.33,0.34]
[1717407775830,2.2374,165.37,165.35,7.05]
[1717407776644,2.2373,165.38,165.35,7.05]
[1717407780485,2.2373,165.38,165.34,2.2377]
[1717407780665,2.2373,165.38,165.35,7.05]
[1717407781684,2.2371,165.39,165.35,7.05]
[1717407784682,2.2371,165.39,165.36,7.05]
[1717407785266,2.2368,165.41,165.37,7.05]
[1717407789601,2.2368,165.41,165.38,1.20753163]
[1717407790304,2.237,165.4,165.37,7.05]
[1717407793706,11.5232,165.43,165.37,7.05]
[1717407793911,2.2371,165.39,165.34,2.2377]
[1717407794210,7.05,165.4,165.34,7.05]
[1717407794211,2.2374,165.37,165.34,7.05]
[1717407795114,2.2374,165.37,165.33,0.17]
[1717407795300,2.2375,165.36,165.33,7.05]
[1717407795498,2.2375,165.36,165.32,2.238]
[1717407795703,2.2375,165.36,165.33,7.05]
[1717407796115,2.2375,165.36,165.32,9.288]
[1717407797023,2.2374,165.37,165.33,7.05]
[1717407797322,2.2374,165.37,165.32,2.238]
[1717407797526,2.2374,165.37,165.33,7.05]
[1717407798007,2.2373,165.38,165.33,7.05]
[1717407798205,2.2373,165.38,165.34,7.05]
[1717407798406,2.2373,165.38,165.35,7.05]
[1717407799993,2.2373,165.38,165.34,7.05]
[1717407800198,2.2373,165.38,165.33,2.2378]
[1717407800400,2.2373,165.38,165.34,7.05]
[1717407801523,2.2374,165.37,165.34,7.05]
[1717407803527,2.2374,165.37,165.33,2.2378]
[1717407803915,2.2374,165.37,165.33,7.05]
[1717407804529,2.2374,165.37,165.32,2.238]
[1717407804835,2.2374,165.37,165.33,7.05]
[1717407806405,2.2374,165.37,165.33,2.2379]
[1717407806607,2.2374,165.37,165.33,9.2879]
[1717407806903,6.5643,165.36,165.27,36.29]
[1717407807132,2.238,165.33,165.29,7.05]
[1717407807451,2.238,165.33,165.28,9.2885]
[1717407809832,2.238,165.33,165.29,2.2384]
[1717407810134,2.2378,165.34,165.29,9.2884]
[1717407810343,2.2377,165.35,165.3,9.2883]
[1717407811337,2.2377,165.35,165.31,7.05]
[1717407815017,2.2377,165.35,165.32,7.05]
[1717407816726,2.2378,165.34,165.32,7.05]
[1717407817129,2.2378,165.34,165.3,0.34]
[1717407817336,2.2378,165.34,165.31,43.68]
[1717407818240,2.2378,165.34,165.31,36.63]
[1717407818429,2.2378,165.34,165.31,43.68]
[1717407818631,2.2378,165.34,165.32,7.05]
[1717407819036,2.2377,165.35,165.32,7.05]
[1717407826347,2.2377,165.35,165.31,0.34]
[1717407826545,2.2377,165.35,165.31,43.68]
[1717407827556,2.2377,165.35,165.31,0.34]
[1717407828056,2.2378,165.34,165.31,0.34]
[1717407828355,2.2378,165.34,165.3,43.34]
[1717407829153,2.238,165.33,165.3,7.05]
[1717407829358,2.238,165.33,165.27,36.29]
[1717407829359,7.05,165.34,165.27,45.5786]
[1717407829651,2.2381,165.32,165.27,45.5786]
[1717407829859,2.2381,165.32,165.28,7.05]
[1717407830236,2.2382,165.31,165.26,2.2388]
[1717407830546,2.2382,165.31,165.27,7.05]
[1717407830935,2.2382,165.31,165.27,9.2887]
[1717407831133,2.2381,165.32,165.27,9.2887]
[1717407831527,2.2381,165.32,165.27,2.2387]
[1717407831731,2.2381,165.32,165.27,9.2887]
[1717407832753,9.288,165.33,165.28,2.2386]
[1717407833052,2.238,165.33,165.28,9.2886]
[1717407835653,9.2878,165.34,165.29,2.2384]
[1717407835851,2.2378,165.34,165.29,9.2884]
[1717407836161,2.2378,165.34,165.29,2.2384]
[1717407836457,2.2378,165.34,165.29,9.2884]
[1717407839755,8.3319,165.34,165.29,9.2884]
[1717407840362,2.2379,165.33,165.29,2.2384]
[1717407841044,2.2379,165.33,165.28,9.2886]
[1717407841248,2.2381,165.32,165.27,2.2386]
[1717407841460,2.2381,165.32,165.28,7.05]
[1717407842735,2.2381,165.32,165.27,2.2386]
[1717407843071,2.2382,165.31,165.28,7.05]
[1717407844453,2.2379,165.33,165.28,9.2886]
[1717407844660,2.2379,165.33,165.29,7.05]
[1717407845540,2.2378,165.34,165.3,9.2883]
[1717407846541,2.2378,165.34,165.3,7.05]
[1717407847061,7.05,165.37,165.3,9.2883]
[1717407847268,7.05,165.37,165.29,36.29]
[1717407847269,2.2375,165.36,165.32,2.238]
[1717407847569,2.2375,165.36,165.32,9.288]
[1717407848461,2.2375,165.36,165.33,7.05]
[1717407848766,2.2375,165.36,165.32,9.288]
[1717407849463,2.2375,165.36,165.32,7.05]
[1717407852374,2.2374,165.37,165.32,9.288]
[1717407852550,2.2374,165.37,165.32,2.238]
[1717407858657,18.2352,165.4,165.32,2.238]
[1717407858658,2.2375,165.36,165.32,2.238]
[1717407859358,2.2375,165.36,165.31,2.5781]
[1717407861853,2.2375,165.36,165.31,9.6281]
[1717407864475,2.2375,165.36,165.31,2.5781]
[1717407864687,2.2375,165.36,165.31,9.2881]
[1717407865382,2.2375,165.36,165.31,2.2381]
[1717407865562,2.2375,165.36,165.31,9.2881]
[1717407866586,2.2375,165.36,165.32,2.238]
[1717407868762,9.2874,165.37,165.32,2.238]
[1717407868971,2.2374,165.37,165.32,9.288]
[1717407869269,2.2374,165.37,165.33,7.05]
[1717407870962,2.2374,165.37,165.32,9.288]
[1717407871182,2.2374,165.37,165.32,2.238]
[1717407875290,2.2375,165.36,165.32,2.238]
[1717407877190,2.2375,165.36,165.33,1.02406629]
[1717407883098,2.2375,165.36,165.32,2.238]
[1717407891007,2.2375,165.36,165.31,2.2381]
[1717407892008,2.2375,165.36,165.32,2.238]
[1717407893906,2.2374,165.37,165.32,2.238]
[1717407895012,2.2375,165.36,165.32,2.238]
[1717407896614,2.2375,165.36,165.29,42.4653]
[1717407896818,2.2378,165.34,165.29,9.2883]
[1717407898910,2.2378,165.34,165.29,2.2383]
[1717407899114,2.2378,165.34,165.29,9.2883]
[1717407899803,2.2378,165.34,165.29,2.2383]
[1717407900002,2.2378,165.34,165.29,9.2883]
[1717407902024,2.2378,165.34,165.26,36.29]
[1717407902025,2.2381,165.32,165.28,2.2386]
[1717407902529,2.2381,165.32,165.28,9.2886]
[1717407902824,2.2381,165.32,165.28,2.2386]
[1717407903306,2.2381,165.32,165.27,2.2387]
[1717407903616,2.2382,165.31,165.27,9.2887]
[1717407903917,2.2379,165.33,165.28,2.2386]
[1717407904306,2.2379,165.33,165.29,7.05]
[1717407904510,14.3861,165.41,165.32,9.288]
[1717407904511,2.2374,165.37,165.32,9.288]
[1717407906925,2.2375,165.36,165.32,7.05]
[1717407907430,2.2374,165.37,165.33,7.05]
[1717407907736,2.2374,165.37,165.34,7.05]
[1717407908924,2.2375,165.37,165.33,7.05]
[1717407910062,4.4739,165.41,165.33,36.29]
[1717407910268,2.237,165.4,165.36,7.05]
[1717407910548,2.2368,165.41,165.36,7.05]
[1717407910748,2.2368,165.41,165.37,7.05]
[1717407913558,2.2368,165.41,165.38,7.05]
[1717407914360,2.2368,165.41,165.37,42.3868]
[1717407914361,2.2368,165.41,165.39,7.05]
[1717407914741,2.2368,165.41,165.37,42.3868]
[1717407914940,2.2368,165.41,165.37,49.4368]
[1717407916044,2.2367,165.42,165.37,51.6741]
[1717407916244,2.2367,165.42,165.38,7.05]
[1717407916554,2.2368,165.41,165.38,7.05]
[1717407919381,2.237,165.4,165.36,7.39]
[1717407919564,2.237,165.4,165.35,45.5776]
[1717407921556,9.2869,165.41,165.36,2.2375]
[1717407921756,2.2369,165.41,165.36,2.2375]
[1717407922369,2.2369,165.41,165.36,9.2875]
[1717407924456,2.2369,165.41,165.37,2.2374]
[1717407925863,2.2369,165.41,165.34,36.63]
[1717407925864,2.237,165.4,165.36,7.05]
[1717407926284,2.237,165.4,165.35,9.2876]
[1717407926963,2.237,165.4,165.36,2.2375]
[1717407928165,2.237,165.4,165.36,9.2875]
[1717407929887,2.237,165.4,165.36,7.05]
[1717407936489,2.2369,165.41,165.36,9.2875]
[1717407937385,2.2369,165.41,165.37,7.05]
[1717407939995,2.2369,165.41,165.36,9.2875]
[1717407942996,2.2369,165.41,165.37,7.05]
[1717407943401,2.2369,165.41,165.38,7.05]
[1717407944177,2.2369,165.41,165.37,7.05]
[1717407944382,2.237,165.4,165.37,7.05]
[1717407948121,2.2371,165.39,165.35,2.2376]
[1717407948424,2.2371,165.39,165.35,9.2876]
[1717407949596,2.2371,165.39,165.35,2.2376]
[1717407949802,2.2371,165.39,165.35,9.2876]
[1717407950522,2.237,165.4,165.35,9.2876]
[1717407953321,2.2371,165.39,165.34,2.5778]
[1717407953501,2.2373,165.38,165.33,9.2879]
[1717407953816,2.2373,165.38,165.34,7.05]
[1717407953995,2.2373,165.38,165.33,2.2379]
[1717407954425,2.2374,165.37,165.32,0.34]
[1717407954609,2.2374,165.37,165.33,7.05]
[1717407955198,2.2374,165.37,165.32,2.238]
[1717407955402,2.2374,165.37,165.32,9.288]
[1717407955616,2.2376,165.36,165.32,7.05]
[1717407956321,2.2374,165.37,165.32,9.288]
[1717407956620,2.2374,165.37,165.32,2.238]
[1717407956820,2.2374,165.37,165.32,9.288]
[1717407959522,2.2375,165.36,165.32,2.238]
[1717407959712,2.2375,165.36,165.32,7.05]
[1717407960418,2.2375,165.36,165.31,2.2381]
[1717407961521,2.2379,165.33,165.28,2.2385]
[1717407961906,2.2381,165.32,165.27,2.2387]
[1717407962106,2.2381,165.32,165.28,7.05]
[1717407962928,2.2381,165.32,165.28,9.2886]
[1717407963115,2.2379,165.33,165.28,9.2886]
[1717407963800,2.2381,165.32,165.27,2.2387]
[1717407964134,2.2381,165.32,165.28,7.05]
[1717407964321,2.2382,165.31,165.26,2.2388]
[1717407964524,2.2382,165.31,165.27,7.05]
[1717407964905,2.2382,165.31,165.26,2.2388]
[1717407965420,2.2382,165.31,165.27,7.05]
[1717407965628,2.2382,165.31,165.26,2.2388]
[1717407965833,2.2382,165.31,165.27,7.05]
[1717407966626,2.2382,165.31,165.26,9.2888]
[1717407967512,2.2382,165.31,165.26,2.2388]
[1717407967839,2.2382,165.31,165.26,9.2888]
[1717407969635,2.2382,165.31,165.26,2.2388]
[1717407969816,2.2382,165.31,165.26,9.2888]
[1717407971430,8.6103,165.3,165.22,36.29]
[1717407971736,8.6103,165.3,165.25,9.289]
[1717407972830,15.6603,165.3,165.25,2.239]
[1717407973330,15.6603,165.3,165.21,2.2394]
[1717407973331,2.2389,165.26,165.21,2.2394]
[1717407973638,7.05,165.28,165.23,2.2392]
[1717407973639,2.2387,165.28,165.23,2.2392]
[1717407973853,2.2385,165.29,165.24,9.2891]
[1717407974207,2.2385,165.29,165.24,2.2391]
[1717407974410,2.2385,165.29,165.25,7.05]
[1717407974849,2.2386,165.28,165.23,2.2392]
[1717407975133,2.2387,165.27,165.22,2.2393]
[1717407975442,2.2388,165.26,165.23,7.05]
[1717407975615,2.2388,165.27,165.23,7.05]
[1717407978521,2.2388,165.27,165.22,2.2394]
[1717407980438,2.2389,165.26,165.22,2.2394]
[1717407980740,2.2389,165.26,165.22,7.05]
[1717407981048,2.2389,165.26,165.21,2.2395]
[1717407981212,2.2389,165.26,165.22,7.05]
[1717407982439,2.2389,165.26,165.21,2.2395]
[1717407982739,2.2389,165.26,165.22,7.05]
[1717407984651,2.2389,165.26,165.21,2.2395]
[1717407984946,17.746,165.31,165.23,7.05]
[1717407984947,2.2388,165.27,165.23,7.05]
[1717407988748,2.2388,165.27,165.22,2.2394]
[1717407989050,2.2388,165.27,165.23,7.05]
[1717407989246,2.2389,165.26,165.21,2.2395]
[1717407989443,2.2389,165.26,165.22,7.05]
[1717407989744,2.2389,165.26,165.21,2.2395]
[1717407989926,2.2389,165.26,165.22,7.05]
[1717407990125,2.239,165.25,165.22,7.05]
[1717407990629,2.2389,165.26,165.22,7.05]
[1717407991042,2.2389,165.26,165.21,2.2395]
[1717407991221,2.2389,165.26,165.22,7.05]
[1717407994326,2.2391,165.25,165.2,45.0]
[1717407994525,2.239,165.25,165.2,47.2396]
[1717407994730,2.239,165.25,165.22,7.05]
[1717407995250,2.239,165.25,165.21,7.05]
[1717407996649,2.239,165.25,165.2,2.2396]
[1717407996839,2.239,165.25,165.21,7.05]
[1717407997259,2.239,165.25,165.2,2.2396]
[1717407997554,2.239,165.25,165.21,7.05]
[1717407998653,2.239,165.25,165.2,2.2396]
[1717407998832,2.239,165.25,165.21,7.05]
[1717407999034,2.239,165.25,165.2,2.2396]
[1717407999253,2.239,165.25,165.21,7.05]
[1717408000252,2.239,165.25,165.2,2.2396]
[1717408000556,2.239,165.25,165.21,7.05]
[1717408001565,2.239,165.25,165.2,2.2396]
[1717408001741,2.239,165.25,165.21,7.05]
[1717408002257,2.239,165.25,165.2,2.2396]
[1717408002444,2.239,165.25,165.21,7.05]
[1717408004869,2.239,165.25,165.2,2.2396]
[1717408005035,2.2391,165.24,165.2,7.05]
[1717408005956,2.239,165.25,165.22,7.05]
[1717408008061,2.239,165.25,165.2,2.2396]
[1717408008262,2.239,165.25,165.21,7.05]
[1717408011349,2.239,165.25,165.2,2.2396]
[1717408011551,2.239,165.25,165.21,7.05]
[1717408013175,2.239,165.25,165.2,2.2396]
[1717408013477,2.239,165.25,165.21,7.05]
[1717408014362,2.239,165.25,165.2,2.2396]
[1717408014656,2.239,165.25,165.21,7.05]
[1717408015866,2.239,165.25,165.2,2.2396]
[1717408016070,2.239,165.25,165.21,7.05]
[1717408016963,2.239,165.25,165.2,2.2396]
[1717408017464,2.239,165.25,165.21,7.05]
[1717408018365,2.239,165.25,165.2,2.2396]
[1717408018573,2.239,165.25,165.2,9.2896]
[1717408020644,2.239,165.25,165.2,2.2396]
[1717408020876,2.239,165.25,165.21,7.05]
[1717408024672,13.83159009,165.31,165.2,2.2396]
[1717408024673,10.7212,165.32,165.24,7.05]
[1717408024891,2.2385,165.29,165.26,7.05]
[1717408025178,2.2383,165.3,165.24,2.2391]
[1717408025470,2.2383,165.3,165.26,7.05]
[1717408025681,2.2382,165.31,165.26,7.05]
[1717408025884,2.2382,165.31,165.27,7.05]
[1717408026478,2.2382,165.31,165.23,81.29]
[1717408026671,2.2382,165.31,165.27,7.05]
[1717408027560,2.2383,165.3,165.27,7.05]
[1717408027976,2.2383,165.3,165.24,0.34]
[1717408028186,2.2385,165.29,165.24,0.34]
[1717408028351,2.2385,165.29,165.26,7.05]
[1717408028778,2.2385,165.29,165.24,0.34]
[1717408028953,2.2385,165.29,165.26,7.05]
[1717408029146,2.2385,165.29,165.25,7.05]
[1717408029359,2.2385,165.29,165.24,7.05]
[1717408029556,2.2386,165.28,165.24,7.05]
[1717408030162,2.2386,165.28,165.22,2.2393]